fUSD/lending_fUSD_20260115
["ID","MTS","AMOUNT","RATE_DAILY","PERIOD"]
[402017125,1768463438238,-1748.6246401,0.00016442,2]
[402017126,1768463438248,-626.16,0.00016442,2]
[402017127,1768463438257,-1200.0,0.00016683,2]
[402017128,1768463438266,-740.10221917,0.00016684,2]
[402017129,1768463438278,-1661.7994,0.00016684,2]
[402017130,1768463438289,-139.17038083,0.00016684,2]
[402017131,1768463438298,-183.191,0.00016684,2]
[402017132,1768463438307,-195.0,0.00016787,2]
[402017133,1768463438316,-373.86707065,0.00016787,2]
[402017134,1768463438325,-987.63,0.0001689,2]
[402017135,1768463438335,-300.0,0.00016923,2]
[402017136,1768463438344,-4915.09154852,0.00016924,2]
[402017137,1768463438469,-53.99815148,0.00016924,2]
[402017138,1768463438478,-174.70913742,0.00016932,2]
[402017139,1768463438487,-425.59880757,0.00016999,2]
[402017140,1768463438497,-200.18562958,0.00016999,2]
[402017141,1768463438506,-236.85,0.00017,2]
[402017143,1768463438516,-1248.77,0.00017014,2]
[402017145,1768463438525,-1168.87903004,0.00017014,2]
[402017174,1768463440361,-79.89096996,0.00017014,2]
[402017175,1768463440370,-1248.77,0.00017014,2]
[402017176,1768463440379,-1248.77,0.00017014,2]
[402017177,1768463440388,-1248.77,0.00017014,2]
[402017178,1768463440398,-269.0,0.00017023,2]
[402017179,1768463440407,-500.0,0.00017023,2]
[402017180,1768463440416,-500.0,0.00017023,2]
[402017181,1768463440426,-500.0,0.00017023,2]
[402017182,1768463440436,-452.04753504,0.00017023,2]
[402017183,1768463440445,-150.0,0.00017023,2]
[402017184,1768463440454,-15969.8402,0.00017024,2]
[402017185,1768463440463,-1000000.0,0.00017024,2]
[402017186,1768463440472,-578.20924308,0.00017099,2]
[402017187,1768463440481,-174.61919141,0.00017099,2]
[402017188,1768463440490,-322.6107,0.00017099,2]
[402017189,1768463440499,-1239.0,0.00017099,2]
[402017190,1768463440507,-425.59880757,0.00017099,2]
[402017191,1768463440516,-425.59880757,0.00017199,2]
[402017192,1768463440525,-500.0,0.00017224,2]
[402017193,1768463440534,-1000.0,0.00017239,2]
[402017194,1768463440543,-425.59880757,0.00017299,2]
[402017195,1768463440552,-425.59880757,0.00017399,2]
[402017196,1768463440561,-200.18562958,0.0001745,2]
[402017197,1768463440570,-200.0,0.0001749,2]
[402017198,1768463440579,-425.59880757,0.000175,2]
[402017199,1768463440588,-425.59880757,0.000176,2]
[402017200,1768463440597,-1728.96287955,0.00017699,2]
[402017201,1768463440606,-4562.76039399,0.00017699,2]
[402017202,1768463440615,-8049.25017626,0.00017699,2]
[402017203,1768463440624,-12041.19686965,0.00017699,2]
[402017204,1768463440633,-16292.1627,0.00017699,2]
[402017205,1768463440642,-425.59880757,0.000177,2]
[402017206,1768463440651,-5306.0,0.00017715,2]
[402017207,1768463440660,-500.0,0.00017715,2]
[402017208,1768463440669,-152.07716114,0.00017715,2]
[402017209,1768463440677,-500.0,0.00017715,2]
[402017210,1768463440686,-500.0,0.00017715,2]
[402017211,1768463440694,-500.0,0.00017715,2]
[402017212,1768463440703,-500.0,0.00017715,2]
[402017213,1768463440712,-500.0,0.00017715,2]
[402017214,1768463440721,-150.0,0.00017715,2]
[402017215,1768463440730,-223.02,0.00017715,2]
[402017216,1768463440738,-500.0,0.00017715,2]
[402017217,1768463440747,-500.0,0.00017761,2]
[402017218,1768463440756,-5306.0,0.0001777,2]
[402017219,1768463440765,-500.0,0.0001777,2]
[402017220,1768463440775,-500.0,0.0001777,2]
[402017221,1768463440783,-500.0,0.0001777,2]
[402017222,1768463440792,-500.0,0.0001777,2]
[402017223,1768463440801,-500.0,0.0001777,2]
[402017224,1768463440810,-500.0,0.0001777,2]
[402017225,1768463440819,-425.59880757,0.000178,2]
[402017226,1768463440828,-5306.0,0.00017825,2]
[402017227,1768463440837,-500.0,0.00017825,2]
[402017228,1768463440846,-500.0,0.00017825,2]
[402017229,1768463440855,-500.0,0.00017825,2]
[402017230,1768463440864,-500.0,0.00017825,2]
[402017231,1768463440873,-500.0,0.00017825,2]
[402017232,1768463440881,-500.0,0.00017825,2]
[402017233,1768463440890,-5306.0,0.00017879,2]
[402017234,1768463440899,-512.72000291,0.00017879,2]
[402017235,1768463440907,-505.50188444,0.00017879,2]
[402017236,1768463440916,-510.43376517,0.00017879,2]
[402017237,1768463440925,-500.0,0.00017879,2]
[402017238,1768463440934,-500.0,0.00017879,2]
[402017239,1768463440943,-364.99101374,0.000179,2]
[402017240,1768463440952,-200.18562958,0.000179,2]
[402017241,1768463440961,-425.59880757,0.000179,2]
[402017242,1768463440970,-397.9682274,0.000179,2]
[402017244,1768463440979,-4642.0,0.000179,2]
[402017245,1768463440989,-5306.0,0.00017934,2]
[402017246,1768463440998,-393.46151941,0.00017934,2]
[402017247,1768463441007,-500.0,0.00017934,2]
[402017248,1768463441016,-535.24248566,0.00017979,2]
[402017249,1768463441025,-5306.0,0.00017989,2]
[402017250,1768463441035,-350.0,0.00017989,2]
[402017251,1768463441043,-223.02,0.00017989,2]
[402017252,1768463441052,-500.0,0.00017989,2]
[402017253,1768463441061,-500.0,0.00017989,2]
[402017254,1768463441070,-620.0,0.00017989,2]
[402017255,1768463441080,-200.0,0.00017989,2]
[402017256,1768463441093,-3000.0,0.00017989,2]
[402017257,1768463441102,-721.12765535,0.00017989,2]
[402017258,1768463441111,-3000.0,0.00017989,2]
[402017259,1768463441120,-3000.0,0.00017989,2]
[402017260,1768463441130,-3000.0,0.00017989,2]
[402017261,1768463441140,-574.12855637,0.00017989,2]
[402017262,1768463441150,-3000.0,0.00017989,2]
[402017263,1768463441160,-3000.0,0.00017989,2]
[402017264,1768463441169,-3117.2381674,0.00017989,2]
[402017265,1768463441178,-3000.0,0.00017989,2]
[402017266,1768463441187,-3000.0,0.00017989,2]
[402017267,1768463441196,-3000.0,0.00017989,2]
[402017268,1768463441206,-1000.0,0.00017989,2]
[402017269,1768463441214,-3000.0,0.00017989,2]
[402017270,1768463441223,-1000.0,0.00017989,2]
[402017271,1768463441233,-2356.73611531,0.00017989,2]
[402017272,1768463441242,-750.0,0.00017989,2]
[402017273,1768463441251,-200.0,0.00017989,2]
[402017274,1768463441261,-500.0,0.00017989,2]
[402017275,1768463441270,-2500.0,0.00017989,2]
[402017276,1768463441279,-2500.0,0.00017989,2]
[402017277,1768463441289,-2000.0,0.00017989,2]
[402017278,1768463441298,-2500.0,0.00017989,2]
[402017279,1768463441307,-2000.0,0.00017989,2]
[402017280,1768463441316,-2500.0,0.00017989,2]
[402017281,1768463441326,-2000.0,0.00017989,2]
[402017282,1768463441335,-2500.0,0.00017989,2]
[402017283,1768463441344,-2000.0,0.00017989,2]
[402017284,1768463441355,-2500.0,0.00017989,2]
[402017285,1768463441365,-1190.60823039,0.00017989,2]
[402017286,1768463441374,-2500.0,0.00017989,2]
[402017287,1768463441386,-500.0,0.00017989,2]
[402017288,1768463441395,-2500.0,0.00017989,2]
[402017289,1768463441404,-2500.0,0.00017989,2]
[402017290,1768463441414,-2500.0,0.00017989,2]
[402017291,1768463441423,-2500.0,0.00017989,2]
[402017292,1768463441432,-3000.0,0.00017989,2]
[402017293,1768463441441,-1056.37014812,0.00017989,2]
[402017294,1768463441451,-1000.0,0.00017989,2]
[402017295,1768463441460,-1000.0,0.00017989,2]
[402017296,1768463441469,-1000.0,0.00017989,2]
[402017297,1768463441478,-256.45376075,0.00017989,2]
[402017298,1768463441487,-535.24248566,0.0001799,2]
[402017299,1768463441496,-535.24248566,0.0001799,2]
[402017300,1768463441505,-939.02,0.00017998,2]
[402017301,1768463441515,-150.0,0.00017999,2]
[402017302,1768463441525,-939.02,0.00017999,2]
[402017303,1768463441538,-939.02,0.00017999,2]
[402017304,1768463441548,-939.02,0.00017999,2]
[402017305,1768463441557,-939.02,0.00017999,2]
[402017306,1768463441567,-939.02,0.00017999,2]
[402017307,1768463441576,-939.02,0.00017999,2]
[402017308,1768463441586,-939.02,0.00017999,2]
[402017309,1768463441595,-939.02,0.00017999,2]
[402017310,1768463441604,-939.02,0.00017999,2]
[402017311,1768463441614,-939.02,0.00017999,2]
[402017312,1768463441623,-939.02,0.00017999,2]
[402017313,1768463441632,-939.02,0.00017999,2]
[402017314,1768463441642,-939.02,0.00017999,2]
[402017315,1768463441651,-939.02,0.00017999,2]
[402017316,1768463441661,-939.02,0.00017999,2]
[402017317,1768463441670,-939.02,0.00017999,2]
[402017318,1768463441679,-939.02,0.00017999,2]
[402017319,1768463441688,-939.02,0.00017999,2]
[402017320,1768463441699,-939.02,0.00017999,2]
[402017321,1768463441708,-939.02,0.00017999,2]
[402017322,1768463441718,-939.02,0.00017999,2]
[402017323,1768463441728,-939.02,0.00017999,2]
[402017324,1768463441737,-939.19331122,0.00017999,2]
[402017325,1768463441746,-2979524.24763848,0.00018,2]
[402017326,1768463442287,-282.31578007,0.00018,2]
[402017327,1768463442319,-328.37971044,0.00018,2]
[402017328,1768463442346,-8604.93847106,0.00018,2]
[402017329,1768463442358,-8947.21879473,0.00018,2]
[402017330,1768463442369,-8943.78386462,0.00018,2]
[402017331,1768463442381,-9077.54866152,0.00018,2]
[402017332,1768463442392,-8943.84023489,0.00018,2]
[402017333,1768463442404,-1003.09440517,0.00018,2]
[402017342,1768463443448,-500.0,0.00017223,2]
[402017343,1768463443458,-151.0,0.0001724,2]
[402017344,1768463443468,-1287.0774899,0.00018,2]
[402017345,1768463443480,-1491.625,0.00018,2]
[402017346,1768463443492,-1772.16665824,0.00018,2]
[402017347,1768463443600,-289.71791382,0.00018,2]
[402017348,1768463443611,-2884.0986,0.00018,2]
[402017352,1768463446320,-160234.16348955,0.00018,2]
[402017353,1768463446410,-3281.0519054,0.00018,2]
[402017354,1768463446421,-1665.55000001,0.00018,2]
[402017356,1768463447975,-717572.38469821,0.00018,2]
[402017357,1768463448002,-260.94300576,0.00018,2]
[402017384,1768464320800,-166.66,0.00015554,2]
[402017385,1768464320823,-166.66,0.00015882,2]
[402017386,1768464320846,-2484.58,0.00016111,2]
[402017387,1768464320869,-3341.15730442,0.00016209,2]
[402017388,1768464320892,-166.66,0.00016209,2]
[402017389,1768464320917,-211.20333349,0.00016531,2]
[402017390,1768464320941,-166.66,0.00016537,2]
[402017391,1768464320963,-300.0,0.00016554,2]
[402017392,1768464320988,-1200.0,0.00016554,2]
[402017393,1768464321012,-300.0,0.00016554,2]
[402017394,1768464321035,-276.0,0.00016555,2]
[402017395,1768464321058,-10201.87,0.00016556,2]
[402017396,1768464321081,-501.69,0.00016607,2]
[402017397,1768464321103,-419.0,0.00016823,2]
[402017398,1768464321126,-2720.517,0.00016824,2]
[402017399,1768464321150,-173.473,0.00016824,2]
[402017400,1768464321172,-15969.8402,0.00016824,2]
[402017401,1768464321419,-4112.312,0.00016824,2]
[402017402,1768464321445,-537.0302802,0.00016826,2]
[402017403,1768464321469,-858.45328659,0.00016826,2]
[402017404,1768464321494,-200.18562958,0.00016826,2]
[402017405,1768464321518,-166.66,0.00016864,2]
[402017406,1768464321546,-200.0,0.00016914,2]
[402017407,1768464321576,-200.0,0.00016914,2]
[402017408,1768464321609,-500.0,0.00016914,2]
[402017409,1768464321635,-500.0,0.00016914,2]
[402017410,1768464321662,-500.0,0.00016914,2]
[402017411,1768464321688,-495.48821609,0.00016914,2]
[402017412,1768464321711,-500.0,0.00016914,2]
[402017413,1768464321735,-500.0,0.00016914,2]
[402017414,1768464321758,-200.0,0.00016914,2]
[402017415,1768464321781,-223.02,0.00016914,2]
[402017416,1768464321805,-500.0,0.00016923,2]
[402017417,1768464321829,-500.0,0.00016923,2]
[402017418,1768464321853,-500.0,0.00016923,2]
[402017419,1768464321876,-500.0,0.00016923,2]
[402017420,1768464321900,-500.0,0.00016923,2]
[402017421,1768464321923,-500.0,0.00016923,2]
[402017422,1768464321947,-500.0,0.00016923,2]
[402017423,1768464321969,-500.0,0.00016923,2]
[402017424,1768464321992,-399.53056654,0.00016923,2]
[402017425,1768464322019,-447141.34918309,0.00016924,2]
[402017428,1768464338737,-192.35570445,0.00016109,2]
[402017429,1768464338764,-3748.64,0.00016637,2]
[402017430,1768464338790,-999.0,0.00016698,3]
[402017431,1768464338814,-192.35570444,0.00016826,2]
[402017432,1768464338848,-494867.64859111,0.00016924,2]
[402017441,1768464422033,42519.65904828,0.00030137,120]
[402017473,1768464631618,-200.0,0.00016646,2]
[402017474,1768464631627,-150.0,0.00016685,2]
[402017475,1768464631637,-63.8620027,0.00016723,2]
[402017476,1768464631647,-236.1379973,0.00016723,2]
[402017477,1768464631657,-150.0,0.00016723,2]
[402017478,1768464631666,-300.0,0.00016723,2]
[402017479,1768464631676,-1200.0,0.00016723,2]
[402017480,1768464631689,-200.18562958,0.00016724,2]
[402017481,1768464631698,-18954.42107873,0.00016724,2]
[402017482,1768464631710,-9240.4924198,0.00016724,2]
[402017483,1768464631734,-310.2158656,0.00016724,2]
[402017485,1768464631759,-10869.13352369,0.00016724,2]
[402017489,1768464637565,-4683.36121135,0.00016724,2]
[402017629,1768464639653,-258.39013124,0.00016724,2]
[402017630,1768464639889,-955683.98576959,0.00016724,2]
[402017631,1768464639898,-2464.5875,0.00016824,2]
[402017632,1768464639908,-1784.92581235,0.00016837,2]
[402017633,1768464639917,-3229.81187184,0.00016923,2]
[402017634,1768464639926,-1852.42,0.00016926,2]
[402017635,1768464639936,-500.0,0.00017023,2]
[402017636,1768464639945,-500.0,0.00017023,2]
[402017637,1768464639954,-500.0,0.00017023,2]
[402017638,1768464639963,-502.60855943,0.00017023,2]
[402017639,1768464639972,-322.6107,0.00017099,2]
[402017640,1768464639980,-174.61919141,0.00017099,2]
[402017641,1768464639990,-1000.0,0.00017099,2]
[402017642,1768464640000,-3000.0,0.00017099,2]
[402017643,1768464640009,-2500.0,0.00017099,2]
[402017644,1768464640019,-3000.0,0.00017099,2]
[402017645,1768464640029,-1000.0,0.00017099,2]
[402017646,1768464640038,-2500.0,0.00017099,2]
[402017647,1768464640048,-3000.0,0.00017099,2]
[402017648,1768464640058,-1056.37014812,0.00017099,2]
[402017649,1768464640067,-750.0,0.00017099,2]
[402017650,1768464640077,-2500.0,0.00017099,2]
[402017651,1768464640086,-3000.0,0.00017099,2]
[402017652,1768464640096,-2500.0,0.00017099,2]
[402017653,1768464640105,-3117.2381674,0.00017099,2]
[402017654,1768464640115,-2500.0,0.00017099,2]
[402017655,1768464640125,-2500.0,0.00017099,2]
[402017656,1768464640134,-574.12855637,0.00017099,2]
[402017657,1768464640143,-2500.0,0.00017099,2]
[402017658,1768464640153,-2500.0,0.00017099,2]
[402017659,1768464640162,-2500.0,0.00017099,2]
[402017660,1768464640171,-578.20924308,0.00017099,2]
[402017661,1768464640180,-2500.0,0.00017099,2]
[402017662,1768464640189,-2500.0,0.00017099,2]
[402017663,1768464640199,-1239.0,0.00017099,2]
[402017664,1768464640208,-500.0,0.00017099,2]
[402017665,1768464640217,-500.0,0.00017099,2]
[402017666,1768464640226,-2000.0,0.00017099,2]
[402017667,1768464640235,-2000.0,0.00017099,2]
[402017668,1768464640245,-2000.0,0.00017099,2]
[402017669,1768464640254,-620.0,0.00017099,2]
[402017670,1768464640264,-2000.0,0.00017099,2]
[402017671,1768464640273,-1190.60823039,0.00017099,2]
[402017672,1768464640283,-3000.0,0.00017099,2]
[402017673,1768464640293,-3000.0,0.00017099,2]
[402017674,1768464640303,-3000.0,0.00017099,2]
[402017675,1768464640312,-3000.0,0.00017099,2]
[402017676,1768464640321,-3000.0,0.00017099,2]
[402017677,1768464640331,-3000.0,0.00017099,2]
[402017678,1768464640340,-3000.0,0.00017099,2]
[402017679,1768464640349,-2356.73611531,0.00017099,2]
[402017680,1768464640358,-1000.0,0.00017099,2]
[402017681,1768464640368,-1000.0,0.00017099,2]
[402017682,1768464640377,-1000.0,0.00017099,2]
[402017683,1768464640387,-256.45376075,0.00017099,2]
[402017684,1768464640396,-721.12765535,0.00017099,2]
[402017685,1768464640405,-500.0,0.00017099,2]
[402017686,1768464640415,-4710.44745909,0.00017137,2]
[402017687,1768464640425,-8309.78766501,0.00017137,2]
[402017688,1768464640436,-12430.94537109,0.00017137,2]
[402017689,1768464640449,-16819.506,0.00017137,2]
[402017690,1768464640459,-223.02,0.00017188,2]
[402017691,1768464640468,-166.66,0.00017192,2]
[402017692,1768464640479,-507.08916018,0.00017223,2]
[402017693,1768464640489,-500.0,0.00017373,2]
[402017694,1768464640499,-500.0,0.00017391,2]
[402017695,1768464640509,-8387.03,0.00017409,2]
[402017696,1768464640519,-483.32725218,0.0001743,2]
[402017697,1768464640529,-501.69,0.00017437,2]
[402017698,1768464640539,-223.0457473,0.00017462,2]
[402017699,1768464640548,-300.0,0.00017534,4]
[402017700,1768464640558,-595.37131296,0.00017647,2]
[402017701,1768464640567,-500.0,0.00017647,2]
[402017702,1768464640576,-500.0,0.00017699,2]
[402017703,1768464640586,-500.0,0.00017699,2]
[402017704,1768464640595,-500.0,0.00017699,2]
[402017705,1768464640605,-150.0,0.00017699,2]
[402017706,1768464640614,-500.0,0.00017699,2]
[402017707,1768464640623,-500.0,0.00017699,2]
[402017708,1768464640632,-150.0,0.00017699,2]
[402017709,1768464640642,-500.0,0.00017699,2]
[402017710,1768464640652,-152.07716114,0.00017699,2]
[402017711,1768464640662,-500.0,0.00017699,2]
[402017712,1768464640671,-500.0,0.00017699,2]
[402017713,1768464640680,-500.0,0.00017754,2]
[402017714,1768464640690,-500.0,0.00017754,2]
[402017715,1768464640699,-500.0,0.00017754,2]
[402017716,1768464640708,-500.0,0.00017754,2]
[402017717,1768464640718,-500.0,0.00017754,2]
[402017718,1768464640728,-500.0,0.00017754,2]
[402017719,1768464640737,-500.0,0.00017754,2]
[402017720,1768464640746,-500.0,0.00017754,2]
[402017721,1768464640756,-2000.0,0.000178,2]
[402017722,1768464640765,-300.0,0.00017808,4]
[402017723,1768464640774,-500.0,0.00017809,2]
[402017724,1768464640783,-500.0,0.00017809,2]
[402017725,1768464640793,-500.0,0.00017809,2]
[402017726,1768464640803,-500.0,0.00017809,2]
[402017727,1768464640812,-500.0,0.00017809,2]
[402017728,1768464640821,-566.0,0.00017809,2]
[402017729,1768464640830,-500.0,0.00017809,2]
[402017730,1768464640840,-500.0,0.00017809,2]
[402017731,1768464640849,-500.0,0.00017863,2]
[402017732,1768464640858,-512.72000291,0.00017863,2]
[402017733,1768464640868,-500.0,0.00017863,2]
[402017734,1768464640877,-500.0,0.00017863,2]
[402017735,1768464640886,-505.50188444,0.00017863,2]
[402017736,1768464640895,-510.43376517,0.00017863,2]
[402017737,1768464640904,-10000.0,0.000179,2]
[402017738,1768464640914,-772.60795794,0.000179,2]
[402017739,1768464640923,-364.99101374,0.000179,2]
[402017740,1768464640932,-156.16009819,0.000179,2]
[402017741,1768464640942,-397.9682274,0.000179,2]
[402017742,1768464640952,-1796.82086517,0.000179,2]
[402017743,1768464640961,-162.43203674,0.000179,2]
[402017744,1768464640970,-4641.0,0.000179,2]
[402017745,1768464640979,-500.0,0.00017918,2]
[402017746,1768464640988,-393.46151941,0.00017918,2]
[402017747,1768464640998,-500.0,0.00017918,2]
[402017748,1768464641007,-500.0,0.00017921,2]
[402017749,1768464641017,-537.40958165,0.00017973,2]
[402017750,1768464641026,-350.0,0.00017973,2]
[402017751,1768464641035,-535.24248566,0.00017989,2]
[402017752,1768464641044,-535.24248566,0.0001799,2]
[402017753,1768464641053,-150.0,0.00017999,2]
[402017754,1768464641063,-644.54014943,0.00017999,2]
[402017755,1768464641072,-500.0,0.00017999,2]
[402017756,1768464641081,-246.67565651,0.00017999,2]
[402017757,1768464641090,-367.38107997,0.00017999,2]
[402017758,1768464641099,-500.0,0.00017999,2]
[402017759,1768464641108,-500.0,0.00017999,2]
[402017760,1768464641118,-500.0,0.00017999,2]
[402017761,1768464641127,-500.0,0.00017999,2]
[402017762,1768464641136,-500.0,0.00017999,2]
[402017763,1768464641146,-500.0,0.00017999,2]
[402017764,1768464641155,-499.01525185,0.00017999,2]
[402017765,1768464641164,-488.83672962,0.00017999,2]
[402017766,1768464641173,-500.0,0.00017999,2]
[402017767,1768464641183,-500.0,0.00017999,2]
[402017768,1768464641193,-500.0,0.00017999,2]
[402017769,1768464641202,-500.0,0.00017999,2]
[402017770,1768464641211,-500.0,0.00017999,2]
[402017771,1768464641220,-500.0,0.00017999,2]
[402017772,1768464641230,-500.0,0.00017999,2]
[402017773,1768464641239,-500.0,0.00017999,2]
[402017774,1768464641247,-500.0,0.00017999,2]
[402017775,1768464641257,-500.0,0.00017999,2]
[402017776,1768464641266,-500.0,0.00017999,2]
[402017777,1768464641275,-500.0,0.00017999,2]
[402017778,1768464641284,-500.0,0.00017999,2]
[402017779,1768464641293,-535.91651747,0.00017999,2]
[402017780,1768464641302,-500.0,0.00017999,2]
[402017781,1768464641311,-3051651.31028154,0.00018,2]
[402017799,1768464642619,-151.0,0.00017378,2]
[402017800,1768464642628,-151.0,0.00017378,2]
[402017801,1768464642638,-2520.65653568,0.00018,2]
[402017808,1768464645463,-2410.33831613,0.00018,2]
[402017809,1768464645530,-753.61154615,0.00018,2]
[402017810,1768464645976,-1030.39263457,0.00018,2]
[402017811,1768464645997,-3696.42900012,0.00018,2]
[402017813,1768464861939,-500.70809916,0.00016573,2]
[402017814,1768464861962,-502.75832237,0.00016573,2]
[402017815,1768464861983,-217.12725227,0.00016573,2]
[402017816,1768464862005,-412.53716935,0.00016573,2]
[402017817,1768464862027,-500.0,0.00016573,2]
[402017818,1768464862048,-410.54695148,0.00016573,2]
[402017819,1768464862071,-500.0,0.00016573,2]
[402017820,1768464862330,-500.0,0.00016573,2]
[402017821,1768464862352,-500.0,0.00016573,2]
[402017822,1768464862374,-500.0,0.00016573,2]
[402017823,1768464862398,-500.0,0.00016573,2]
[402017824,1768464862424,-500.0,0.00016723,2]
[402017825,1768464862449,-500.0,0.00016723,2]
[402017826,1768464862472,-500.0,0.00016723,2]
[402017827,1768464862496,-546.67038325,0.00016723,2]
[402017828,1768464862523,-2500.0,0.00016724,2]
[402017829,1768464862547,-33208.7114,0.00016724,2]
[402017830,1768464862570,-300.0,0.00016823,2]
[402017831,1768464862593,-550.0,0.00016823,2]
[402017832,1768464862621,-956350.94042212,0.00016824,2]
[402017834,1768464950850,163.35,8.488e-05,2]
[402017835,1768464951035,163.35,8.934e-05,2]
[402017836,1768464951296,163.35,9.381e-05,2]
[402017837,1768464951471,163.35,9.828e-05,2]
[402017838,1768464951647,163.35,0.00010275,2]
[402017839,1768464952233,163.35,0.00010721,2]
[402017840,1768464952400,163.35,0.00011168,2]
[402017841,1768464952459,163.35,0.00011615,2]
[402017842,1768464952663,163.35,0.00012061,2]
[402017843,1768464952870,163.35,0.00012508,2]
[402017844,1768464953097,163.35,0.00012955,2]
[402017845,1768464953290,163.35,0.00013402,2]
[402017846,1768464953467,163.35,0.00013848,2]
[402017847,1768464953667,163.35,0.00014295,2]
[402017848,1768464953854,163.35,0.00014742,2]
[402017849,1768464954061,163.35,0.00015188,2]
[402017854,1768465312401,530.42,0.00024719,120]
[402017855,1768465330226,1000.0,0.00015,2]
[402017856,1768465585586,2039.12,0.0001308,2]
[402017864,1768465831570,-163.35,0.00015635,2]
[402017866,1768465831580,-96.68248731,0.000157,2]
[402017868,1768465831592,-3140.35799868,0.000157,2]
[402017871,1768465831611,-501.01040161,0.000157,2]
[402017872,1768465831623,-546.73785307,0.000157,2]
[402017873,1768465831632,-360.07814693,0.00015777,2]
[402017874,1768465831643,-1864.37185307,0.00015777,2]
[402017875,1768465831653,-500.0,0.00015777,2]
[402017876,1768465831664,-300.0,0.00015998,2]
[402017877,1768465831673,-278.0,0.00015999,2]
[402017878,1768465831683,-1200.0,0.00015999,2]
[402017879,1768465831692,-300.0,0.00015999,2]
[402017880,1768465831702,-7584.90924542,0.00016,2]
[402017881,1768465831730,-2471.41220405,0.00016,2]
[402017882,1768465831739,-200.0,0.0001608,2]
[402017883,1768465831749,-163.35,0.00016082,2]
[402017884,1768465831759,-500.0,0.0001615,2]
[402017885,1768465831768,-2643.57054066,0.000162,5]
[402017886,1768465831784,-1975.34666119,0.000162,5]
[402017887,1768465831795,-381.08956359,0.000162,5]
[402017888,1768465831804,-136.91043641,0.00016293,2]
[402017889,1768465831816,-29.75956359,0.00016293,2]
[402017890,1768465831827,-215.77,0.00016428,2]
[402017891,1768465831836,-77.06365029,0.0001643,2]
[402017896,1768465831965,-997.82453796,0.0001643,2]
[402017898,1768465831975,-30.43310473,0.0001643,2]
[402017900,1768465831986,-392.96086813,0.0001643,2]
[402017903,1768465831997,-126.60602714,0.0001643,2]
[402017904,1768465832007,-1830.54655912,0.00016431,2]
[402017918,1768465832125,-1398.98959839,0.00016431,2]
[402017920,1768465832137,-1377.69079332,0.00016431,2]
[402017923,1768465832148,-11367.31893508,0.00016431,2]
[402017926,1768465837839,-24025.45411409,0.00016431,2]
[402017927,1768465837851,-530.42,0.00016479,2]
[402017928,1768465837860,-163.35,0.00016529,2]
[402017929,1768465837871,-1779.91711524,0.00016563,2]
[402017930,1768465837880,-500.0,0.00016573,2]
[402017931,1768465837890,-500.0,0.00016573,2]
[402017932,1768465837899,-504.32889534,0.00016573,2]
[402017933,1768465837909,-500.0,0.00016573,2]
[402017934,1768465837918,-500.16948602,0.00016573,2]
[402017935,1768465837927,-565.73472704,0.00016573,2]
[402017936,1768465837937,-500.0,0.00016573,2]
[402017937,1768465837946,-500.0,0.00016573,2]
[402017938,1768465837955,-500.0,0.00016573,2]
[402017939,1768465837965,-500.0,0.00016573,2]
[402017940,1768465837974,-500.0,0.00016573,2]
[402017941,1768465837983,-500.0,0.00016573,2]
[402017942,1768465837992,-500.0,0.00016573,2]
[402017943,1768465838001,-500.0,0.00016573,2]